fUSD/lending_fUSD_20240117
["ID","MTS","AMOUNT","RATE_DAILY","PERIOD"]
[311984266,1705530644948,-500.0,0.00021917,2]
[311984268,1705530644957,-500.0,0.00021917,2]
[311984270,1705530644966,-500.0,0.00021917,2]
[311984272,1705530644975,-500.0,0.00021917,2]
[311984275,1705530644985,-501.91723454,0.00021917,2]
[311984276,1705530644994,-500.0,0.00021917,2]
[311984278,1705530645003,-500.0,0.00021917,2]
[311984281,1705530645013,-500.0,0.00021917,2]
[311984283,1705530645022,-500.0,0.00021917,2]
[311984285,1705530645032,-500.0,0.00021917,2]
[311984287,1705530645041,-500.0,0.00021917,2]
[311984289,1705530645050,-500.0,0.00021917,2]
[311984290,1705530645059,-500.0,0.00021917,2]
[311984292,1705530645069,-500.0,0.00021917,2]
[311984295,1705530645079,-508.97375421,0.00021917,2]
[311984297,1705530645089,-500.0,0.00021917,2]
[311984298,1705530645098,-500.0,0.00021917,2]
[311984301,1705530645107,-500.0,0.00021917,2]
[311984303,1705530645116,-500.0,0.00021917,2]
[311984305,1705530645126,-890.28,0.00021917,2]
[311984307,1705530645135,-500.0,0.00021917,2]
[311984309,1705530645144,-500.0,0.00021917,2]
[311984311,1705530645153,-625.73,0.00021917,2]
[311984312,1705530645162,-500.0,0.00021917,2]
[311984315,1705530645171,-500.0,0.00021917,2]
[311984316,1705530645181,-500.0,0.00021917,2]
[311984318,1705530645190,-520.63,0.00021917,2]
[311984320,1705530645199,-500.0,0.00021917,2]
[311984323,1705530645208,-500.0,0.00021917,2]
[311984325,1705530645217,-4926.48,0.00021917,2]
[311984326,1705530645226,-500.0,0.00021917,2]
[311984328,1705530645235,-500.0,0.00021917,2]
[311984330,1705530645244,-500.0,0.00021917,2]
[311984333,1705530645253,-3205.31,0.00021917,2]
[311984335,1705530645266,-500.0,0.00021917,2]
[311984337,1705530645275,-500.0,0.00021917,2]
[311984339,1705530645284,-500.0,0.00021917,2]
[311984341,1705530645293,-500.0,0.00021917,2]
[311984343,1705530645302,-501.01129582,0.00021917,2]
[311984345,1705530645311,-500.0,0.00021917,2]
[311984347,1705530645321,-500.0,0.00021917,2]
[311984349,1705530645330,-500.0,0.00021917,2]
[311984351,1705530645339,-500.0,0.00021917,2]
[311984353,1705530645348,-500.0,0.00021917,2]
[311984355,1705530645360,-500.0,0.00021917,2]
[311984357,1705530645369,-500.0,0.00021917,2]
[311984359,1705530645378,-500.0,0.00021917,2]
[311984361,1705530645388,-500.0,0.00021917,2]
[311984363,1705530645398,-500.0,0.00021917,2]
[311984365,1705530645407,-5602.65,0.00021917,2]
[311984367,1705530645416,-239.43049118,0.00021917,2]
[311984369,1705530645425,-500.0,0.00021917,2]
[311984371,1705530645435,-500.0,0.00021917,2]
[311984373,1705530645445,-500.0,0.00021917,2]
[311984375,1705530645454,-503.6366536,0.00021917,2]
[311984376,1705530645463,-500.0,0.00021917,2]
[311984377,1705530645472,-1946.89,0.00021917,2]
[311984378,1705530645481,-500.0,0.00021917,2]
[311984379,1705530645490,-500.0,0.00021917,2]
[311984380,1705530645499,-320.41540871,0.00021917,2]
[311984381,1705530645509,-500.0,0.00021917,2]
[311984382,1705530645518,-500.0,0.00021917,2]
[311984384,1705530645526,-500.0,0.00021917,2]
[311984386,1705530645535,-500.0,0.00021917,2]
[311984388,1705530645544,-301.28177513,0.00021917,2]
[311984390,1705530645553,-500.0,0.00021917,2]
[311984392,1705530645561,-500.0,0.00021917,2]
[311984394,1705530645571,-500.0,0.00021917,2]
[311984396,1705530645580,-500.0,0.00021917,2]
[311984398,1705530645589,-500.0,0.00021917,2]
[311984400,1705530645599,-500.0,0.00021917,2]
[311984402,1705530645608,-500.0,0.00021917,2]
[311984404,1705530645616,-500.0,0.00021917,2]
[311984406,1705530645625,-500.0,0.00021917,2]
[311984408,1705530645634,-531.54,0.00021917,2]
[311984410,1705530645643,-500.0,0.00021917,2]
[311984412,1705530645652,-500.0,0.00021917,2]
[311984414,1705530645660,-500.0,0.00021917,2]
[311984416,1705530645669,-502.15942815,0.00021917,2]
[311984418,1705530645678,-500.0,0.00021917,2]
[311984420,1705530645687,-500.0,0.00021917,2]
[311984422,1705530645696,-500.0,0.00021917,2]
[311984424,1705530645705,-500.0,0.00021917,2]
[311984426,1705530645714,-500.0,0.00021917,2]
[311984428,1705530645723,-500.0,0.00021917,2]
[311984430,1705530645732,-629.88,0.00021917,2]
[311984432,1705530645741,-500.0,0.00021917,2]
[311984434,1705530645749,-500.0,0.00021917,2]
[311984436,1705530645760,-500.0,0.00021917,2]
[311984438,1705530645769,-500.0,0.00021917,2]
[311984440,1705530645778,-517.87346342,0.00021917,2]
[311984442,1705530645787,-500.0,0.00021917,2]
[311984444,1705530645795,-500.0,0.00021917,2]
[311984446,1705530645804,-500.0,0.00021917,2]
[311984448,1705530645813,-500.0,0.00021917,2]
[311984450,1705530645822,-500.0,0.00021917,2]
[311984452,1705530645831,-500.0,0.00021917,2]
[311984454,1705530645839,-887.59,0.00021917,2]
[311984456,1705530645848,-500.0,0.00021917,2]
[311984458,1705530645857,-500.0,0.00021917,2]
[311984460,1705530645866,-500.0,0.00021917,2]
[311984463,1705530645875,-1010.14961699,0.00021917,2]
[311984466,1705530645884,-500.0,0.00021917,2]
[311984469,1705530645894,-500.0,0.00021917,2]
[311984471,1705530645903,-500.0,0.00021917,2]
[311984473,1705530645912,-500.0,0.00021917,2]
[311984474,1705530645921,-500.0,0.00021917,2]
[311984476,1705530645931,-500.0,0.00021917,2]
[311984478,1705530645941,-500.0,0.00021917,2]
[311984480,1705530645950,-6554.1,0.00021917,2]
[311984481,1705530645959,-500.0,0.00021917,2]
[311984482,1705530645968,-698.23,0.00021917,2]
[311984483,1705530645977,-500.0,0.00021917,2]
[311984484,1705530645986,-564.98,0.00021917,2]
[311984485,1705530645996,-1162.57,0.00021917,2]
[311984486,1705530646005,-583.32,0.00021917,2]
[311984487,1705530646016,-500.0,0.00021917,2]
[311984488,1705530646027,-500.0,0.00021917,2]
[311984489,1705530646037,-500.0,0.00021917,2]
[311984490,1705530646047,-500.0,0.00021917,2]
[311984491,1705530646057,-500.0,0.00021917,2]
[311984492,1705530646066,-500.0,0.00021917,2]
[311984493,1705530646075,-300.0,0.00021917,2]
[311984494,1705530646084,-500.0,0.00021917,2]
[311984495,1705530646093,-500.0,0.00021917,2]
[311984496,1705530646103,-474.2505157,0.00021917,2]
[311984497,1705530646113,-500.0,0.00021917,2]
[311984498,1705530646122,-500.0,0.00021917,2]
[311984499,1705530646131,-500.0,0.00021917,2]
[311984500,1705530646141,-500.0,0.00021917,2]
[311984501,1705530646151,-500.0,0.00021917,2]
[311984502,1705530646162,-647.33,0.00021917,2]
[311984503,1705530646171,-500.0,0.00021917,2]
[311984504,1705530646181,-2589.06,0.00021917,2]
[311984505,1705530646190,-500.0,0.00021917,2]
[311984506,1705530646199,-500.0,0.00021917,2]
[311984507,1705530646208,-500.0,0.00021917,2]
[311984508,1705530646217,-500.0,0.00021917,2]
[311984509,1705530646227,-500.0,0.00021917,2]
[311984510,1705530646236,-500.0,0.00021917,2]
[311984511,1705530646245,-500.0,0.00021917,2]
[311984512,1705530646254,-500.0,0.00021917,2]
[311984513,1705530646266,-500.0,0.00021917,2]
[311984514,1705530646275,-500.0,0.00021917,2]
[311984515,1705530646285,-600.61208843,0.00021917,2]
[311984516,1705530646294,-500.0,0.00021917,2]
[311984517,1705530646303,-500.0,0.00021917,2]
[311984518,1705530646313,-500.0,0.00021917,2]
[311984519,1705530646322,-584.39,0.00021917,2]
[311984520,1705530646332,-500.0,0.00021917,2]
[311984521,1705530646341,-500.0,0.00021917,2]
[311984522,1705530646352,-500.0,0.00021917,2]
[311984523,1705530646362,-500.0,0.00021917,2]
[311984524,1705530646371,-500.0,0.00021917,2]
[311984525,1705530646381,-932.38,0.00021917,2]
[311984526,1705530646390,-827.71,0.00021917,2]
[311984527,1705530646400,-500.0,0.00021917,2]
[311984528,1705530646409,-500.0,0.00021917,2]
[311984529,1705530646418,-500.0,0.00021917,2]
[311984530,1705530646427,-500.0,0.00021917,2]
[311984531,1705530646437,-500.0,0.00021917,2]
[311984532,1705530646447,-500.0,0.00021917,2]
[311984533,1705530646456,-500.0,0.00021917,2]
[311984534,1705530646465,-500.0,0.00021917,2]
[311984535,1705530646474,-500.0,0.00021917,2]
[311984536,1705530646483,-540.72,0.00021917,2]
[311984537,1705530646492,-500.0,0.00021917,2]
[311984538,1705530646501,-1587.53,0.00021917,2]
[311984539,1705530646511,-505.11504352,0.00021917,2]
[311984540,1705530646520,-296.83,0.00021917,2]
[311984542,1705530646528,-500.0,0.00021917,2]
[311984544,1705530646537,-500.0,0.00021917,2]
[311984546,1705530646546,-1720.64,0.00021917,2]
[311984548,1705530646554,-500.0,0.00021917,2]
[311984549,1705530646564,-500.0,0.00021917,2]
[311984551,1705530646573,-574.16,0.00021917,2]
[311984552,1705530646582,-500.0,0.00021917,2]
[311984553,1705530646590,-500.0,0.00021917,2]
[311984554,1705530646599,-956.17,0.00021917,2]
[311984555,1705530646608,-500.0,0.00021917,2]
[311984557,1705530646618,-500.0,0.00021917,2]
[311984558,1705530646626,-500.0,0.00021917,2]
[311984559,1705530646635,-500.0,0.00021917,2]
[311984560,1705530646645,-181.88,0.00021917,2]
[311984561,1705530646653,-834.23,0.00021917,2]
[311984562,1705530646662,-513.91882553,0.00021917,2]
[311984563,1705530646672,-500.0,0.00021917,2]
[311984564,1705530646681,-500.0,0.00021917,2]
[311984565,1705530646690,-1034.19,0.00021917,2]
[311984566,1705530646699,-594.71,0.00021917,2]
[311984567,1705530646709,-500.0,0.00021917,2]
[311984568,1705530646718,-500.0,0.00021917,2]
[311984569,1705530646727,-503.25877934,0.00021917,2]
[311984570,1705530646736,-500.0,0.00021917,2]
[311984571,1705530646746,-500.0,0.00021917,2]
[311984572,1705530646755,-561.97591621,0.00021917,2]
[311984573,1705530646764,-566.39,0.00021917,2]
[311984574,1705530646772,-500.0,0.00021917,2]
[311984575,1705530646781,-500.0,0.00021917,2]
[311984576,1705530646790,-557.92,0.00021917,2]
[311984577,1705530646799,-500.0,0.00021917,2]
[311984578,1705530646808,-500.0,0.00021917,2]
[311984579,1705530646817,-501.58432659,0.00021917,2]
[311984580,1705530646826,-500.0,0.00021917,2]
[311984581,1705530646835,-500.0,0.00021917,2]
[311984582,1705530646844,-908.08,0.00021917,2]
[311984583,1705530646853,-500.0,0.00021917,2]
[311984584,1705530646862,-243.89,0.00021917,2]
[311984585,1705530646871,-500.0,0.00021917,2]
[311984586,1705530646880,-1881.7,0.00021917,2]
[311984587,1705530646889,-500.0,0.00021917,2]
[311984588,1705530646898,-774.57,0.00021917,2]
[311984589,1705530646907,-516.75,0.00021917,2]
[311984590,1705530646916,-500.0,0.00021917,2]
[311984591,1705530646925,-500.0,0.00021917,2]
[311984592,1705530646935,-1869.34,0.00021917,5]
[311984593,1705530646944,-500.0,0.00021917,2]
[311984594,1705530646953,-500.0,0.00021917,2]
[311984595,1705530646962,-500.0,0.00021917,2]
[311984596,1705530646971,-593.46,0.00021917,2]
[311984597,1705530646980,-500.0,0.00021917,2]
[311984598,1705530646990,-500.0,0.00021917,2]
[311984599,1705530646999,-500.0,0.00021917,2]
[311984600,1705530647008,-500.0,0.00021917,2]
[311984601,1705530647017,-500.0,0.00021917,2]
[311984602,1705530647027,-500.0,0.00021917,2]
[311984603,1705530647036,-1227.71,0.00021917,2]
[311984604,1705530647046,-500.0,0.00021917,2]
[311984605,1705530647055,-500.0,0.00021917,2]
[311984606,1705530647065,-500.0,0.00021917,2]
[311984607,1705530647073,-500.0,0.00021917,2]
[311984608,1705530647082,-500.0,0.00021917,2]
[311984609,1705530647091,-500.0,0.00021917,2]
[311984610,1705530647100,-500.0,0.00021917,2]
[311984611,1705530647109,-500.0,0.00021917,2]
[311984612,1705530647118,-500.0,0.00021917,2]
[311984613,1705530647127,-500.0,0.00021917,2]
[311984614,1705530647136,-500.0,0.00021917,2]
[311984615,1705530647145,-500.0,0.00021917,2]
[311984616,1705530647154,-500.0,0.00021917,2]
[311984617,1705530647163,-500.0,0.00021917,2]
[311984618,1705530647172,-500.0,0.00021917,2]
[311984619,1705530647182,-500.0,0.00021917,2]
[311984620,1705530647191,-500.0,0.00021917,2]
[311984621,1705530647200,-496.18484363,0.00021917,2]
[311984622,1705530647209,-708.4,0.00021917,2]
[311984623,1705530647218,-3174.24,0.00021917,2]
[311984624,1705530647227,-500.0,0.00021917,2]
[311984625,1705530647236,-500.0,0.00021917,2]
[311984626,1705530647245,-500.0,0.00021917,2]
[311984627,1705530647255,-239.87,0.00021917,2]
[311984628,1705530647265,-500.0,0.00021917,2]
[311984629,1705530647274,-1918.92,0.00021917,2]
[311984630,1705530647284,-500.0,0.00021917,2]
[311984631,1705530647293,-500.0,0.00021917,2]
[311984632,1705530647302,-727.11,0.00021917,2]
[311984633,1705530647311,-760.62,0.00021917,2]
[311984634,1705530647321,-500.0,0.00021917,2]
[311984635,1705530647330,-500.0,0.00021917,2]
[311984636,1705530647339,-201.71,0.00021917,2]
[311984637,1705530647348,-500.0,0.00021917,2]
[311984638,1705530647360,-500.0,0.00021917,2]
[311984639,1705530647370,-500.0,0.00021917,2]
[311984640,1705530647380,-2245.82,0.00021917,2]
[311984641,1705530647390,-500.0,0.00021917,2]
[311984642,1705530647400,-500.0,0.00021917,2]
[311984643,1705530647409,-511.93673748,0.00021917,2]
[311984644,1705530647419,-1702.24,0.00021917,2]
[311984645,1705530647430,-500.0,0.00021917,2]
[311984646,1705530647439,-500.0,0.00021917,2]
[311984647,1705530647448,-500.0,0.00021917,2]
[311984648,1705530647458,-500.0,0.00021917,2]
[311984649,1705530647468,-500.0,0.00021917,2]
[311984650,1705530647477,-500.0,0.00021917,2]
[311984651,1705530647487,-500.0,0.00021917,2]
[311984652,1705530647496,-1190.12,0.00021917,2]
[311984653,1705530647505,-647.22,0.00021917,2]
[311984654,1705530647515,-510.625343,0.00021917,2]
[311984655,1705530647524,-500.0,0.00021917,2]
[311984656,1705530647533,-500.0,0.00021917,2]
[311984657,1705530647543,-500.0,0.00021917,2]
[311984658,1705530647552,-500.0,0.00021917,2]
[311984659,1705530647561,-1493.8,0.00021917,2]
[311984660,1705530647571,-500.0,0.00021917,2]
[311984661,1705530647580,-500.0,0.00021917,2]
[311984662,1705530647589,-500.0,0.00021917,2]
[311984663,1705530647599,-500.0,0.00021917,2]
[311984664,1705530647608,-500.0,0.00021917,2]
[311984665,1705530647617,-500.0,0.00021917,2]
[311984666,1705530647626,-500.0,0.00021917,2]
[311984667,1705530647636,-500.0,0.00021917,2]
[311984668,1705530647645,-154.40647481,0.00021917,2]
[311984669,1705530647655,-500.0,0.00021917,2]
[311984670,1705530647665,-250.0,0.00021918,2]
[311984671,1705530647674,-277.8,0.00021931,2]
[311984672,1705530647684,-22597.01833293,0.00021965,2]
[311984673,1705530647694,-450.0,0.00022,3]
[311984674,1705530647703,-250.0,0.00022,2]
[311984675,1705530647713,-150.0,0.00022,2]
[311984676,1705530647722,-200.0,0.00022012,2]
[311984677,1705530647732,-165.92298532,0.0002209,2]
[311984678,1705530647741,-3949.59004095,0.0002209,2]
[311984679,1705530647750,-205.80597416,0.00022091,2]
[311984680,1705530647761,-265.0340658,0.00022091,2]
[311984681,1705530647770,-152.15,0.0002212,2]
[311984682,1705530647779,-261.40118,0.00022148,3]
[311984683,1705530647789,-277.8,0.00022148,2]
[311984684,1705530647798,-3949.59004085,0.00022164,2]
[311984685,1705530647807,-800.0,0.00022164,2]
[311984686,1705530647817,-157.35,0.00022173,2]
[311984687,1705530647826,-559.13864927,0.00022187,2]
[311984688,1705530647835,-500.0,0.00022187,2]
[311984689,1705530647844,-420.6,0.00022187,2]
[311984690,1705530647853,-500.0,0.00022187,2]
[311984691,1705530647863,-500.0,0.00022187,2]
[311984692,1705530647872,-500.0,0.00022187,2]
[311984693,1705530647882,-5922.26094598,0.00022187,2]
[311984694,1705530647892,-207.78272895,0.00022187,2]
[311984695,1705530647901,-155.0,0.00022187,2]
[311984696,1705530647911,-2422.41560372,0.00022187,4]
[311984697,1705530647921,-262.34869981,0.00022188,2]
[311984698,1705530647930,-400.0,0.00022188,2]
[311984699,1705530647940,-197963.2382505,0.00022188,2]
[311984700,1705530647950,-195.14197758,0.00022189,2]
[311984701,1705530647959,-3295.67153385,0.00022189,2]
[311984702,1705530647970,-2825.40838862,0.00022189,2]
[311984703,1705530647980,-2000.0,0.00022189,2]
[311984704,1705530647989,-200.0,0.00022189,2]
[311984705,1705530647999,-304.95,0.00022189,2]
[311984706,1705530648008,-500.0,0.00022189,2]
[311984707,1705530648018,-500.0,0.00022189,2]
[311984708,1705530648028,-1117.0,0.00022189,2]
[311984709,1705530648037,-309.08429853,0.0002219,2]
[311984710,1705530648047,-3002.88932866,0.0002219,2]
[311984711,1705530648056,-4267.19887316,0.0002219,2]
[311984712,1705530648066,-5269.96207069,0.0002219,2]
[311984713,1705530648075,-480476.60528804,0.0002219,2]
[311984714,1705530648085,-300.0,0.0002219,2]
[311984715,1705530648094,-300.0,0.0002219,2]
[311984716,1705530648103,-500.0,0.0002219,2]
[311984717,1705530648113,-13947.59,0.0002219,2]
[311984718,1705530648123,-331371.49406644,0.00022191,3]
[311984719,1705530648476,-738.54219566,0.00022191,3]
[311984720,1705530648501,-30408.56297443,0.00022191,3]
[311984721,1705530648513,-131551.62727759,0.00022191,3]
[311984722,1705530648525,-37737.18807361,0.00022191,3]
[311984723,1705530648925,-500.0,0.00021917,2]
[311984724,1705530648935,-500.0,0.00021917,2]
[311984725,1705530648944,-281.22556572,0.00021917,2]
[311984726,1705530649330,-218.77443428,0.00021917,2]
[311984727,1705530649340,-500.0,0.00021917,2]
[311984728,1705530649353,-2272.05998718,0.00022191,3]
[311984729,1705530649383,-2138.27006728,0.00021916,2]
[311984730,1705530649392,-8475.32238774,0.00022191,3]
[311984731,1705530649404,-579.81418838,0.00022191,3]
[311984732,1705530649415,-87090.08311699,0.00022191,3]
[311984733,1705530649433,-288.11805248,0.00022191,3]
[311984734,1705530649444,-100399.9999998,0.00022191,3]
[311984735,1705530649456,-3826.41334144,0.00022191,3]
[311984736,1705530649467,-296.55767061,0.00022191,3]
[311984737,1705530649479,-870.30863893,0.00022191,3]
[311984738,1705530649491,-297.87035,0.00022191,3]
[311984739,1705530649849,-589.12893763,0.00021917,3]
[311984740,1705530649859,-39.19606237,0.00021917,2]
[311984741,1705530649881,-460.80393763,0.00021917,2]
[311984742,1705530649890,-500.0,0.00021917,2]
[311984743,1705530649900,-2313.32819715,0.0002209,3]
[311984744,1705530649909,-4037.65857522,0.00022191,3]
[311984745,1705530649921,-46214.2992017,0.00022191,3]
[311984746,1705530649932,-264.0952,0.00022191,3]
[311984747,1705530649943,-430.22874,0.00022191,3]
[311984748,1705530649956,-401.16507316,0.00022191,3]
[311984749,1705530649968,-9029.63706439,0.00022191,3]
[311984750,1705530649980,-16462.08209363,0.00022191,3]
[311984751,1705530649991,-6768.38997299,0.00022191,3]
[311984752,1705530650002,-15939.8,0.00022191,3]
[311984753,1705530650014,-4645.05000001,0.00022191,3]
[311984761,1705530977939,476.05,0.00018475,2]
[311984773,1705531510554,472.05,0.00018164,2]
[311984814,1705531832317,-150.0,0.00019873,2]
[311984816,1705531832326,-165.71927005,0.00019873,2]
[311984818,1705531832336,-2318.27132642,0.00019899,2]
[311984820,1705531832348,-643.45947358,0.00019899,2]
[311984822,1705531832357,-356.54052642,0.00019965,2]
[311984825,1705531832369,-227.45947358,0.00019965,2]
[311984827,1705531832378,-150.0,0.00019973,2]
[311984828,1705531832387,-300.0,0.00019998,2]
[311984830,1705531832397,-150.0,0.00019998,2]
[311984832,1705531832407,-20451.76352642,0.00019999,2]
[311984861,1705531838222,-2154.64397191,0.00019999,2]
[311984862,1705531838231,-2475.29256209,0.0002,2]
[311984863,1705531838241,-719.82,0.0002,2]
[311984864,1705531838250,-719.81,0.0002,2]
[311984865,1705531838259,-719.64,0.0002,2]
[311984866,1705531838268,-716.38,0.0002,2]
[311984867,1705531838277,-732.55,0.0002,2]
[311984868,1705531838286,-715.57,0.0002,2]
[311984869,1705531838296,-500.0,0.00020053,2]
[311984870,1705531838304,-416.0,0.00020103,2]
[311984871,1705531838314,-499.99,0.00020103,2]
[311984872,1705531838323,-2719.26,0.00020103,2]
[311984873,1705531838332,-224.99,0.00020103,3]
[311984874,1705531838341,-173.29,0.00020111,2]
[311984875,1705531838350,-165.71926999,0.00020151,2]
[311984876,1705531838360,-1049.38,0.00020254,2]
[311984877,1705531838369,-2633.99,0.00020254,2]
[311984878,1705531838378,-197.72,0.00020254,2]
[311984879,1705531838388,-222.86,0.00020255,2]
[311984880,1705531838397,-173.29,0.00020321,2]
[311984881,1705531838407,-1000.0,0.00020378,2]
[311984882,1705531838416,-157.37,0.00020379,2]
[311984883,1705531838425,-472.05,0.00020428,2]
[311984884,1705531838670,-165.71926999,0.00020428,2]
[311984885,1705531838680,-222.86,0.00020468,2]
[311984886,1705531838689,-173.29,0.0002053,2]
[311984887,1705531838698,-335.0,0.00020652,2]
[311984888,1705531838706,-222.86,0.00020681,2]
[311984889,1705531838717,-165.71926999,0.00020706,2]
[311984890,1705531838730,-11171.10468059,0.00020737,2]
[311984891,1705531838740,-1104.42705946,0.00020738,2]
[311984892,1705531838749,-728.83,0.00020739,2]
[311984893,1705531838758,-173.29,0.0002074,2]
[311984894,1705531838768,-1104.42705947,0.00020747,2]
[311984895,1705531838779,-711.48,0.00020755,2]
[311984896,1705531838788,-725.36,0.0002077,2]
[311984897,1705531838798,-718.38,0.00020798,2]
[311984898,1705531838807,-723.37,0.00020848,2]
[311984899,1705531838816,-715.72,0.00020848,2]
[311984900,1705531838825,-222.86,0.00020895,2]
[311984901,1705531838835,-173.29,0.00020949,2]
[311984902,1705531838844,-165.71926999,0.00020984,2]
[311984903,1705531838853,-204.0,0.00021019,2]
[311984904,1705531838862,-1257.73251354,0.00021038,2]
[311984905,1705531838871,-222.86,0.00021108,2]
[311984906,1705531838880,-173.29,0.00021159,2]
[311984907,1705531838890,-207.4938182,0.000212,3]
[311984908,1705531838899,-256.83,0.000212,2]
[311984909,1705531838908,-1049.38,0.00021232,2]
[311984910,1705531838917,-165.71926999,0.00021262,2]
[311984911,1705531838926,-656.64058921,0.00021284,2]
[311984912,1705531838936,-222.86,0.00021321,2]
[311984913,1705531838944,-508.61023103,0.00021337,2]
[311984914,1705531838953,-52288.8074,0.00021399,2]
[311984915,1705531838962,-188.59454843,0.000214,2]
[311984916,1705531838971,-262.5,0.00021413,2]
[311984917,1705531838980,-1104.42705947,0.00021468,2]
[311984918,1705531838990,-728.63,0.00021477,2]
[311984919,1705531838998,-419.33924047,0.00021486,2]
[311984920,1705531839007,-263.49556138,0.00021489,2]
[311984921,1705531839017,-723.35,0.00021497,2]
[311984922,1705531839026,-400.0,0.00021497,2]
[311984923,1705531839035,-766.28397364,0.00021497,2]
[311984924,1705531839044,-529.04001639,0.00021497,2]
[311984925,1705531839054,-288.80634248,0.00021497,2]
[311984926,1705531839063,-2318.58071486,0.00021497,2]
[311984927,1705531839072,-354.34701306,0.00021497,2]
[311984928,1705531839081,-202.57156383,0.00021497,2]
[311984929,1705531839090,-16583.68994891,0.00021498,2]
[311984930,1705531839099,-150.0,0.00021498,2]
[311984931,1705531839108,-721.08,0.00021499,2]
[311984932,1705531839117,-482247.32166938,0.00021499,2]
[311984933,1705531839126,-159.53,0.000215,2]
[311984934,1705531839135,-250.0,0.000215,2]
[311984935,1705531839144,-222.86,0.00021534,2]
[311984936,1705531839153,-165.71926999,0.00021539,2]
[311984937,1705531839162,-726.57,0.00021572,2]
[311984938,1705531839171,-188.5945484,0.00021573,2]
[311984939,1705531839181,-709.92,0.00021647,2]
[311984940,1705531839190,-710.81,0.00021731,2]
[311984941,1705531839199,-188.5945484,0.00021746,2]
[311984942,1705531839208,-222.86,0.00021747,2]
[311984943,1705531839218,-365.0,0.00021776,2]
[311984944,1705531839227,-159.53,0.00021789,2]
[311984945,1705531839236,-1045.15556312,0.00021796,2]
[311984946,1705531839246,-309.08429853,0.00021815,2]
[311984947,1705531839255,-5269.96207069,0.00021815,2]
[311984948,1705531839264,-2422.41560372,0.00021815,4]
[311984949,1705531839274,-262.34869981,0.00021815,2]
[311984950,1705531839283,-165.92298532,0.00021815,2]
[311984951,1705531839293,-5952.90176292,0.00021815,2]
[311984952,1705531839303,-4267.19887316,0.00021816,2]
[311984953,1705531839312,-1000.0,0.00021817,2]
[311984954,1705531839321,-1000.0,0.00021817,2]
[311984955,1705531839331,-13415.5696,0.00021817,2]
[311984956,1705531839340,-730.24,0.00021817,2]
[311984957,1705531839349,-732.71,0.00021817,2]
[311984958,1705531839358,-5116.2662,0.00021817,2]
[311984960,1705531839367,-500.0,0.00021817,2]
[311984961,1705531839377,-114283.6508,0.00021817,2]
[311984962,1705531839386,-165.71926999,0.00021817,2]
[311984963,1705531839395,-205.80597416,0.00021817,2]
[311984964,1705531839405,-928.3109167,0.00021817,2]
[311984965,1705531839414,-587.98983432,0.00021817,2]
[311984966,1705531839423,-13947.59,0.00021828,2]
[311984968,1705531839432,-505627.29609809,0.000219,2]
[311984970,1705531839442,-5952.90176283,0.00021914,2]
[311984972,1705531839451,-3002.88932866,0.00021915,2]
[311984974,1705531839460,-235.03855244,0.00021916,2]
[311984977,1705531839471,-500.0,0.00021917,2]
[311984979,1705531839480,-605.64098396,0.00021917,2]